fUST/lending_fUST_20250522
["ID","MTS","AMOUNT","RATE_DAILY","PERIOD"]
[361996402,1747929040052,-1554.94,0.00022191,2]
[361996404,1747929040062,-430.0,0.00022191,2]
[361996406,1747929040071,-844.09,0.00022191,2]
[361996408,1747929040082,-335.54,0.00022191,2]
[361996410,1747929040092,-2109.29,0.00022191,2]
[361996412,1747929040102,-155.65,0.00022191,2]
[361996414,1747929040112,-825.52,0.00022191,2]
[361996416,1747929040123,-1901.48,0.00022191,2]
[361996418,1747929040134,-2957.29,0.00022191,2]
[361996420,1747929040144,-500.0,0.00022191,2]
[361996422,1747929040154,-671.88,0.00022191,2]
[361996424,1747929040164,-1229.41,0.00022191,2]
[361996426,1747929040174,-9855.19,0.00022191,2]
[361996428,1747929040184,-430.0,0.00022191,2]
[361996430,1747929040194,-764.69,0.00022191,2]
[361996432,1747929040204,-430.0,0.00022191,2]
[361996434,1747929040214,-430.0,0.00022191,2]
[361996436,1747929040223,-802.91,0.00022191,2]
[361996438,1747929040233,-430.0,0.00022191,2]
[361996440,1747929040243,-1378.07,0.00022191,2]
[361996443,1747929040253,-1451.94,0.00022191,2]
[361996444,1747929040262,-370.0,0.00022191,2]
[361996450,1747929040272,-430.0,0.00022191,2]
[361996454,1747929040282,-430.0,0.00022191,2]
[361996458,1747929040292,-430.0,0.00022191,2]
[361996460,1747929040304,-430.0,0.00022191,2]
[361996462,1747929040313,-396.02,0.00022191,2]
[361996464,1747929040323,-1723.45,0.00022191,2]
[361996466,1747929040332,-3436.44,0.00022191,2]
[361996468,1747929040341,-151.0,0.000222,10]
[361996470,1747929040351,-1000.0,0.00022205,2]
[361996471,1747929040361,-5000.0,0.0002222,2]
[361996474,1747929040373,-500.0,0.00022229,2]
[361996476,1747929040383,-1000.0,0.00022229,2]
[361996478,1747929040393,-994.24378014,0.00022229,2]
[361996480,1747929040403,-8254.85100393,0.00022245,6]
[361996482,1747929040412,-1128.60097279,0.00022247,2]
[361996484,1747929040422,-1318.65291373,0.0002231,2]
[361996486,1747929040431,-283.56,0.000224,2]
[361996488,1747929040441,-1000.0,0.0002242,2]
[361996490,1747929040450,-1000.0,0.0002242,2]
[361996492,1747929040460,-1000.0,0.0002242,2]
[361996494,1747929040470,-1000.0,0.0002242,2]
[361996496,1747929040479,-1000.0,0.0002242,2]
[361996498,1747929040490,-261.35002777,0.00022465,2]
[361996500,1747929040499,-430.0,0.00022465,2]
[361996502,1747929040509,-430.0,0.00022465,2]
[361996504,1747929040519,-283.55849407,0.00022465,2]
[361996506,1747929040529,-347.88,0.00022465,2]
[361996508,1747929040539,-896.17,0.00022465,2]
[361996510,1747929040548,-430.0,0.00022465,2]
[361996512,1747929040558,-430.0,0.00022465,2]
[361996514,1747929040567,-1020.17,0.00022465,2]
[361996516,1747929040577,-500.0,0.00022465,2]
[361996518,1747929040587,-430.0,0.00022465,2]
[361996520,1747929040596,-430.0,0.00022465,2]
[361996522,1747929040606,-430.0,0.00022465,2]
[361996524,1747929040616,-430.0,0.00022465,2]
[361996526,1747929040626,-938.52,0.00022465,2]
[361996528,1747929040636,-662.08,0.00022465,2]
[361996530,1747929040645,-430.0,0.00022465,2]
[361996532,1747929040654,-640.76,0.00022465,2]
[361996534,1747929040664,-491.97,0.00022465,2]
[361996537,1747929040674,-430.0,0.00022465,2]
[361996539,1747929040684,-430.0,0.00022465,2]
[361996541,1747929040693,-430.0,0.00022465,2]
[361996543,1747929040703,-1379.19,0.00022465,2]
[361996545,1747929040714,-1239.19,0.00022465,2]
[361996547,1747929040723,-430.0,0.00022465,2]
[361996549,1747929040733,-1208.6,0.00022465,2]
[361996551,1747929040742,-430.0,0.00022465,2]
[361996553,1747929040752,-335.78953446,0.00022465,2]
[361996555,1747929040762,-313.2,0.00022465,2]
[361996557,1747929040771,-430.0,0.00022465,2]
[361996559,1747929040781,-430.0,0.00022465,2]
[361996562,1747929040791,-851.89,0.00022465,2]
[361996565,1747929040801,-461.3,0.00022465,2]
[361996567,1747929040811,-771.35,0.00022465,2]
[361996569,1747929040821,-430.0,0.00022465,2]
[361996571,1747929040831,-1322.26,0.00022465,2]
[361996573,1747929040840,-165.76,0.00022465,2]
[361996575,1747929040850,-569.9,0.00022465,2]
[361996577,1747929040862,-430.0,0.00022465,2]
[361996579,1747929040874,-271.82,0.00022465,2]
[361996581,1747929040884,-471.54,0.00022465,2]
[361996583,1747929040894,-303.6,0.00022465,2]
[361996585,1747929040905,-430.0,0.00022465,2]
[361996587,1747929040914,-430.0,0.00022465,2]
[361996589,1747929040924,-538.47,0.00022465,2]
[361996591,1747929040933,-312.09,0.00022465,2]
[361996593,1747929040943,-1898.13,0.00022465,2]
[361996595,1747929040952,-1962.83,0.00022465,2]
[361996597,1747929040962,-604.09,0.00022465,2]
[361996599,1747929040971,-430.0,0.00022465,2]
[361996601,1747929040981,-8963.37,0.00022465,2]
[361996603,1747929040991,-1737.58,0.00022465,2]
[361996605,1747929041001,-2764.25,0.00022465,2]
[361996607,1747929041010,-430.0,0.00022465,2]
[361996609,1747929041020,-430.0,0.00022465,2]
[361996611,1747929041030,-557.85,0.00022465,2]
[361996613,1747929041039,-1216.19,0.00022465,2]
[361996615,1747929041049,-430.0,0.00022465,2]
[361996617,1747929041059,-1108.25,0.00022465,2]
[361996619,1747929041068,-430.0,0.00022465,2]
[361996621,1747929041078,-218.79,0.00022465,2]
[361996623,1747929041087,-972.04,0.00022465,2]
[361996626,1747929041097,-430.0,0.00022465,2]
[361996627,1747929041107,-430.0,0.00022465,2]
[361996630,1747929041117,-317.65,0.00022465,2]
[361996632,1747929041131,-823.71,0.00022465,2]
[361996634,1747929041141,-809.7,0.00022465,2]
[361996636,1747929041150,-430.0,0.00022465,2]
[361996638,1747929041160,-3200.48,0.00022465,2]
[361996640,1747929041171,-430.0,0.00022465,2]
[361996642,1747929041180,-1295.55,0.00022465,2]
[361996644,1747929041189,-430.0,0.00022465,2]
[361996646,1747929041200,-4467.42,0.00022465,2]
[361996648,1747929041210,-748.1,0.00022465,2]
[361996650,1747929041219,-2671.9,0.00022465,2]
[361996652,1747929041228,-430.0,0.00022465,2]
[361996654,1747929041238,-3210.28,0.00022465,2]
[361996656,1747929041247,-572.48,0.00022465,2]
[361996658,1747929041256,-835.65,0.00022465,2]
[361996660,1747929041266,-338.00486075,0.00022465,2]
[361996663,1747929041288,-2877.31,0.00022465,2]
[361996665,1747929041299,-2822.06,0.00022465,2]
[361996667,1747929041309,-1394.08,0.00022465,2]
[361996669,1747929041319,-650.27,0.00022465,2]
[361996671,1747929041329,-509.19,0.00022465,2]
[361996673,1747929041339,-430.0,0.00022465,2]
[361996675,1747929041349,-577.64,0.00022465,2]
[361996677,1747929041359,-1910.56,0.00022465,2]
[361996679,1747929041370,-756.1,0.00022465,2]
[361996681,1747929041379,-1554.94,0.00022465,2]
[361996683,1747929041389,-430.0,0.00022465,2]
[361996686,1747929041399,-844.09,0.00022465,2]
[361996688,1747929041410,-2109.29,0.00022465,2]
[361996690,1747929041419,-825.52,0.00022465,2]
[361996692,1747929041430,-1901.48,0.00022465,2]
[361996694,1747929041439,-500.0,0.00022465,2]
[361996696,1747929041451,-2957.29,0.00022465,2]
[361996698,1747929041461,-671.88,0.00022465,2]
[361996700,1747929041471,-1229.41,0.00022465,2]
[361996702,1747929041481,-9855.19,0.00022465,2]
[361996704,1747929041490,-155.83,0.00022465,2]
[361996706,1747929041500,-525.57424391,0.00022465,2]
[361996728,1747929041703,-239.11575609,0.00022465,2]
[361996731,1747929041714,-191.65,0.00022465,2]
[361996733,1747929041724,-234.9851064,0.00022465,2]
[361996735,1747929041733,-802.91,0.00022465,2]
[361996737,1747929041742,-430.0,0.00022465,2]
[361996739,1747929041752,-1378.07,0.00022465,2]
[361996741,1747929041762,-1451.94,0.00022465,2]
[361996761,1747929041772,-166.1199665,0.00022465,2]
[361996763,1747929041959,-430.0,0.00022465,2]
[361996766,1747929041969,-430.0,0.00022465,2]
[361996768,1747929041982,-1723.45,0.00022465,2]
[361996770,1747929041992,-8254.85100393,0.00022486,7]
[361996772,1747929042002,-215.0738,0.00022493,2]
[361996774,1747929042012,-151.63523759,0.00022493,2]
[361996776,1747929042021,-1000.0,0.00022521,2]
[361996778,1747929042033,-1000.0,0.00022521,2]
[361996780,1747929042042,-1000.0,0.00022521,2]
[361996782,1747929042052,-1500.0,0.00022571,2]
[361996784,1747929042062,-151.0,0.000226,7]
[361996786,1747929042072,-151.0,0.000226,8]
[361996788,1747929042082,-316.83944,0.00022603,2]
[361996790,1747929042092,-6915.9188261,0.00022639,3]
[361996792,1747929042102,-2400.0,0.00022639,2]
[361996794,1747929042114,-1500.0,0.00022714,2]
[361996796,1747929042126,-1500.0,0.00022714,2]
[361996798,1747929042137,-8254.85100393,0.00022728,7]
[361996800,1747929042147,-212.4501065,0.0002273,7]
[361996802,1747929042156,-430.0,0.00022739,2]
[361996804,1747929042166,-430.0,0.00022739,2]
[361996806,1747929042176,-896.17,0.00022739,2]
[361996808,1747929042186,-430.0,0.00022739,2]
[361996810,1747929042196,-430.0,0.00022739,2]
[361996812,1747929042206,-1020.17,0.00022739,2]
[361996814,1747929042215,-500.0,0.00022739,2]
[361996816,1747929042224,-430.0,0.00022739,2]
[361996818,1747929042234,-430.0,0.00022739,2]
[361996820,1747929042244,-430.0,0.00022739,2]
[361996822,1747929042253,-430.0,0.00022739,2]
[361996824,1747929042262,-938.52,0.00022739,2]
[361996826,1747929042272,-662.08,0.00022739,2]
[361996827,1747929042281,-430.0,0.00022739,2]
[361996830,1747929042292,-640.76,0.00022739,2]
[361996832,1747929042302,-491.97,0.00022739,2]
[361996834,1747929042311,-430.0,0.00022739,2]
[361996836,1747929042321,-430.0,0.00022739,2]
[361996838,1747929042331,-237.82564432,0.00022739,2]
[361996840,1747929042342,-1379.19,0.00022739,2]
[361996841,1747929042352,-1239.19,0.00022739,2]
[361996842,1747929042362,-430.0,0.00022739,2]
[361996843,1747929042372,-1208.6,0.00022739,2]
[361996844,1747929042382,-430.0,0.00022739,2]
[361996845,1747929042391,-246.93,0.00022739,2]
[361996846,1747929042401,-430.0,0.00022739,2]
[361996847,1747929042411,-851.89,0.00022739,2]
[361996848,1747929042420,-461.3,0.00022739,2]
[361996850,1747929042430,-430.0,0.00022739,2]
[361996852,1747929042439,-771.35,0.00022739,2]
[361996854,1747929042449,-1322.26,0.00022739,2]
[361996856,1747929042459,-305.83585737,0.00022739,2]
[361996858,1747929042469,-471.54,0.00022739,2]
[361996860,1747929042479,-442.78,0.00022739,2]
[361996862,1747929042488,-430.0,0.00022739,2]
[361996864,1747929042498,-538.47,0.00022739,2]
[361996866,1747929042509,-1898.13,0.00022739,2]
[361996868,1747929042518,-1962.83,0.00022739,2]
[361996870,1747929042529,-604.09,0.00022739,2]
[361996872,1747929042539,-430.0,0.00022739,2]
[361996874,1747929042548,-8963.37,0.00022739,2]
[361996877,1747929042558,-1737.58,0.00022739,2]
[361996879,1747929042567,-2764.25,0.00022739,2]
[361996881,1747929042576,-430.0,0.00022739,2]
[361996883,1747929042586,-439.36377283,0.00022739,2]
[361996885,1747929042595,-1216.19,0.00022739,2]
[361996887,1747929042605,-430.0,0.00022739,2]
[361996889,1747929042615,-1108.25,0.00022739,2]
[361996891,1747929042624,-430.0,0.00022739,2]
[361996893,1747929042633,-972.04,0.00022739,2]
[361996895,1747929042643,-430.0,0.00022739,2]
[361996897,1747929042652,-430.0,0.00022739,2]
[361996899,1747929042661,-317.65,0.00022739,2]
[361996901,1747929042671,-823.71,0.00022739,2]
[361996903,1747929042681,-809.7,0.00022739,2]
[361996905,1747929042690,-430.0,0.00022739,2]
[361996907,1747929042700,-3200.48,0.00022739,2]
[361996909,1747929042709,-430.0,0.00022739,2]
[361996911,1747929042719,-1295.55,0.00022739,2]
[361996913,1747929042730,-430.0,0.00022739,2]
[361996915,1747929042739,-4467.42,0.00022739,2]
[361996917,1747929042749,-748.1,0.00022739,2]
[361996919,1747929042758,-2671.9,0.00022739,2]
[361996921,1747929042768,-430.0,0.00022739,2]
[361996923,1747929042778,-3210.28,0.00022739,2]
[361996925,1747929042788,-572.48,0.00022739,2]
[361996927,1747929042798,-835.65,0.00022739,2]
[361996929,1747929042807,-2877.31,0.00022739,2]
[361996932,1747929042817,-2822.06,0.00022739,2]
[361996934,1747929042827,-1394.08,0.00022739,2]
[361996936,1747929042836,-650.27,0.00022739,2]
[361996938,1747929042845,-509.19,0.00022739,2]
[361996940,1747929042854,-430.0,0.00022739,2]
[361996942,1747929042864,-577.64,0.00022739,2]
[361996944,1747929042874,-1910.56,0.00022739,2]
[361996946,1747929042883,-756.1,0.00022739,2]
[361996948,1747929042893,-1554.94,0.00022739,2]
[361996950,1747929042902,-430.0,0.00022739,2]
[361996952,1747929042911,-844.09,0.00022739,2]
[361996954,1747929042920,-2109.29,0.00022739,2]
[361996956,1747929042931,-825.52,0.00022739,2]
[361996958,1747929042941,-1901.48,0.00022739,2]
[361996960,1747929042950,-443.92309113,0.00022739,2]
[361996962,1747929042960,-2957.29,0.00022739,2]
[361996964,1747929042971,-671.88,0.00022739,2]
[361996966,1747929042980,-1229.41,0.00022739,2]
[361996968,1747929042990,-9855.19,0.00022739,2]
[361996970,1747929042999,-764.69,0.00022739,2]
[361996972,1747929043009,-802.91,0.00022739,2]
[361996974,1747929043018,-430.0,0.00022739,2]
[361996976,1747929043028,-1378.07,0.00022739,2]
[361996978,1747929043038,-1451.94,0.00022739,2]
[361996980,1747929043048,-430.0,0.00022739,2]
[361996982,1747929043058,-430.0,0.00022739,2]
[361996984,1747929043068,-1723.45,0.00022739,2]
[361996986,1747929043077,-505.30963114,0.00022753,2]
[361996988,1747929043087,-158.1770606,0.00022767,2]
[361996990,1747929043096,-1139.6452054,0.00022767,2]
[361996992,1747929043106,-306.3760041,0.00022767,2]
[361996994,1747929043116,-158.1770606,0.00022767,2]
[361996996,1747929043132,-569.8226027,0.00022767,2]
[361996998,1747929043142,-158.1770606,0.00022767,2]
[361997000,1747929043151,-161.9492411,0.00022767,2]
[361997002,1747929043162,-5000.0,0.00022768,2]
[361997004,1747929043171,-1500.0,0.00022777,2]
[361997006,1747929043182,-151.0,0.000228,5]
[361997009,1747929043191,-151.81581677,0.000229,2]
[361997010,1747929043201,-165.78476889,0.00022913,2]
[361997013,1747929043211,-1318.65291373,0.00022913,2]
[361997015,1747929043220,-590.65279468,0.00022951,2]
[361997018,1747929043230,-500.0,0.00022964,2]
[361997021,1747929043240,-1500.0,0.00022968,2]
[361997024,1747929043249,-500.0,0.00022968,2]
[361997027,1747929043258,-500.0,0.00022968,2]
[361997030,1747929043267,-905.16507239,0.00022968,2]
[361997032,1747929043278,-503.57840558,0.00022968,2]
[361997035,1747929043288,-8254.85100393,0.00022969,8]
[361997038,1747929043298,-719.0,0.00022988,3]
[361997042,1747929043307,-719.0,0.00022988,3]
[361997044,1747929043316,-719.0,0.00022988,3]
[361997046,1747929043326,-719.0,0.00022988,3]
[361997048,1747929043338,-719.0,0.00022988,3]
[361997050,1747929043347,-719.0,0.00022988,3]
[361997052,1747929043357,-719.0,0.00022988,3]
[361997055,1747929043367,-719.0,0.00022988,3]
[361997057,1747929043377,-719.0,0.00022988,3]
[361997059,1747929043386,-719.0,0.00022988,3]
[361997061,1747929043396,-719.0,0.00022988,3]
[361997063,1747929043410,-719.0,0.00022988,3]
[361997065,1747929043420,-450.90932927,0.00022988,3]
[361997067,1747929043429,-152.0,0.00022988,3]
[361997069,1747929043439,-152.0,0.00022988,3]
[361997071,1747929043449,-152.0,0.00022988,3]
[361997073,1747929043459,-152.0,0.00022988,3]
[361997075,1747929043469,-152.0,0.00022988,3]
[361997077,1747929043479,-152.0,0.00022988,3]
[361997079,1747929043488,-152.0,0.00022988,3]
[361997081,1747929043498,-152.0,0.00022988,3]
[361997084,1747929043508,-152.0,0.00022988,3]
[361997086,1747929043517,-152.0,0.00022988,3]
[361997088,1747929043528,-152.0,0.00022988,3]
[361997090,1747929043542,-152.0,0.00022988,3]
[361997092,1747929043551,-152.0,0.00022988,3]
[361997094,1747929043561,-152.0,0.00022988,3]
[361997096,1747929043571,-152.0,0.00022988,3]
[361997098,1747929043581,-152.0,0.00022988,3]
[361997100,1747929043591,-152.0,0.00022988,3]
[361997102,1747929043600,-152.0,0.00022988,3]
[361997104,1747929043609,-152.0,0.00022988,3]
[361997106,1747929043619,-152.0,0.00022988,3]
[361997108,1747929043628,-152.0,0.00022988,3]
[361997110,1747929043638,-152.0,0.00022988,3]
[361997112,1747929043647,-152.0,0.00022988,3]
[361997114,1747929043657,-152.0,0.00022988,3]
[361997116,1747929043667,-152.0,0.00022988,3]
[361997118,1747929043677,-152.0,0.00022988,3]
[361997120,1747929043686,-152.0,0.00022988,3]
[361997122,1747929043696,-152.0,0.00022988,3]
[361997124,1747929043705,-152.0,0.00022988,3]
[361997126,1747929043715,-152.0,0.00022988,3]
[361997128,1747929043724,-152.0,0.00022988,3]
[361997130,1747929043734,-152.0,0.00022988,3]
[361997132,1747929043743,-152.0,0.00022988,3]
[361997134,1747929043753,-152.0,0.00022988,3]
[361997136,1747929043763,-152.0,0.00022988,3]
[361997138,1747929043775,-152.0,0.00022988,3]
[361997140,1747929043784,-152.0,0.00022988,3]
[361997142,1747929043793,-152.0,0.00022988,3]
[361997144,1747929043802,-152.0,0.00022988,3]
[361997146,1747929043812,-152.0,0.00022988,3]
[361997148,1747929043822,-152.0,0.00022988,3]
[361997150,1747929043831,-152.0,0.00022988,3]
[361997152,1747929043841,-152.0,0.00022988,3]
[361997154,1747929043850,-152.0,0.00022988,3]
[361997156,1747929043859,-152.0,0.00022988,3]
[361997158,1747929043868,-152.0,0.00022988,3]
[361997160,1747929043878,-152.0,0.00022988,3]
[361997162,1747929043887,-152.0,0.00022988,3]
[361997165,1747929043897,-152.0,0.00022988,3]
[361997168,1747929043907,-152.0,0.00022988,3]
[361997172,1747929043916,-269.44133094,0.00022988,3]
[361997175,1747929043926,-151.0,0.00023,7]
[361997178,1747929043935,-160.0,0.00023,3]
[361997181,1747929043946,-2000.0,0.00023,2]
[361997183,1747929043955,-160.0,0.00023,3]
[361997185,1747929043964,-1000.0,0.00023,2]
[361997187,1747929043974,-1085.007666,0.00023,2]
[361997189,1747929043983,-160.0,0.00023,3]
[361997191,1747929043992,-2599.0,0.00023,2]
[361997193,1747929044002,-500.0,0.00023,30]
[361997195,1747929044011,-160.0,0.00023,3]
[361997197,1747929044021,-422.78357425,0.00023,3]
[361997199,1747929044033,-200.0,0.00023,2]
[361997201,1747929044043,-430.0,0.00023013,2]
[361997203,1747929044053,-538.22816113,0.00023013,2]
[361997205,1747929044063,-896.17,0.00023013,2]
[361997207,1747929044073,-430.0,0.00023013,2]
[361997209,1747929044083,-430.0,0.00023013,2]
[361997211,1747929044093,-1020.17,0.00023013,2]
[361997213,1747929044103,-500.0,0.00023013,2]
[361997215,1747929044113,-430.0,0.00023013,2]
[361997217,1747929044125,-430.0,0.00023013,2]
[361997219,1747929044136,-430.0,0.00023013,2]
[361997221,1747929044146,-430.0,0.00023013,2]
[361997223,1747929044155,-938.52,0.00023013,2]
[361997226,1747929044165,-662.08,0.00023013,2]
[361997228,1747929044174,-430.0,0.00023013,2]
[361997230,1747929044184,-640.76,0.00023013,2]
[361997232,1747929044194,-491.97,0.00023013,2]
[361997234,1747929044204,-430.0,0.00023013,2]
[361997236,1747929044214,-430.0,0.00023013,2]
[361997238,1747929044223,-1379.19,0.00023013,2]
[361997240,1747929044233,-1239.19,0.00023013,2]
[361997242,1747929044243,-430.0,0.00023013,2]
[361997244,1747929044253,-1208.6,0.00023013,2]
[361997246,1747929044263,-382.85243388,0.00023013,2]
[361997248,1747929044276,-430.0,0.00023013,2]
[361997250,1747929044287,-851.89,0.00023013,2]
[361997252,1747929044297,-461.3,0.00023013,2]
[361997254,1747929044307,-430.0,0.00023013,2]
[361997256,1747929044317,-771.35,0.00023013,2]
[361997258,1747929044327,-1322.26,0.00023013,2]
[361997260,1747929044337,-471.54,0.00023013,2]
[361997262,1747929044346,-430.0,0.00023013,2]
[361997264,1747929044356,-538.47,0.00023013,2]
[361997266,1747929044367,-1898.13,0.00023013,2]
[361997268,1747929044376,-1962.83,0.00023013,2]
[361997270,1747929044386,-604.09,0.00023013,2]
[361997272,1747929044395,-430.0,0.00023013,2]
[361997274,1747929044406,-8963.37,0.00023013,2]
[361997276,1747929044416,-2764.25,0.00023013,2]
[361997278,1747929044426,-1737.58,0.00023013,2]
[361997280,1747929044436,-430.0,0.00023013,2]
[361997282,1747929044446,-1216.19,0.00023013,2]
[361997284,1747929044456,-430.0,0.00023013,2]
[361997286,1747929044466,-1108.25,0.00023013,2]
[361997288,1747929044475,-430.0,0.00023013,2]
[361997291,1747929044485,-972.04,0.00023013,2]
[361997293,1747929044495,-430.0,0.00023013,2]
[361997295,1747929044505,-430.0,0.00023013,2]
[361997297,1747929044515,-317.65,0.00023013,2]
[361997299,1747929044525,-823.71,0.00023013,2]
[361997301,1747929044535,-809.7,0.00023013,2]
[361997303,1747929044545,-430.0,0.00023013,2]
[361997305,1747929044554,-3200.48,0.00023013,2]
[361997307,1747929044563,-430.0,0.00023013,2]
[361997309,1747929044573,-1295.55,0.00023013,2]
[361997311,1747929044583,-430.0,0.00023013,2]
[361997325,1747929044700,-4467.42,0.00023013,2]
[361997327,1747929044722,-748.1,0.00023013,2]
[361997329,1747929044731,-2671.9,0.00023013,2]
[361997331,1747929044741,-343.86896285,0.00023013,2]
[361997333,1747929044751,-3210.28,0.00023013,2]
[361997335,1747929044760,-835.65,0.00023013,2]
[361997337,1747929044770,-572.48,0.00023013,2]
[361997339,1747929044782,-2877.31,0.00023013,2]
[361997341,1747929044791,-2822.06,0.00023013,2]
[361997344,1747929044802,-1394.08,0.00023013,2]
[361997345,1747929044811,-650.27,0.00023013,2]
[361997346,1747929044820,-430.0,0.00023013,2]
[361997347,1747929044829,-509.19,0.00023013,2]
[361997348,1747929044839,-577.64,0.00023013,2]
[361997349,1747929044848,-1910.56,0.00023013,2]
[361997350,1747929044858,-756.1,0.00023013,2]
[361997351,1747929044868,-1554.94,0.00023013,2]
[361997352,1747929044877,-430.0,0.00023013,2]
[361997353,1747929044886,-844.09,0.00023013,2]
[361997354,1747929044895,-2109.29,0.00023013,2]
[361997355,1747929044904,-825.52,0.00023013,2]
[361997356,1747929044914,-1901.48,0.00023013,2]
[361997357,1747929044924,-2957.29,0.00023013,2]
[361997358,1747929044933,-671.88,0.00023013,2]
[361997359,1747929044942,-1229.41,0.00023013,2]
[361997360,1747929044951,-9855.19,0.00023013,2]
[361997361,1747929044962,-764.69,0.00023013,2]
[361997362,1747929044971,-802.91,0.00023013,2]
[361997363,1747929044980,-430.0,0.00023013,2]
[361997364,1747929044990,-1378.07,0.00023013,2]
[361997365,1747929044999,-1451.94,0.00023013,2]
[361997366,1747929045008,-390.86488436,0.00023013,2]
[361997367,1747929045018,-430.0,0.00023013,2]
[361997368,1747929045029,-1723.45,0.00023013,2]
[361997369,1747929045039,-600.0,0.0002304,2]
[361997370,1747929045048,-1500.0,0.00023068,2]
[361997371,1747929045057,-1500.0,0.00023068,2]
[361997372,1747929045067,-1500.0,0.00023068,2]
[361997373,1747929045076,-5000.0,0.00023109,2]
[361997374,1747929045086,-590.65279468,0.00023188,2]
[361997375,1747929045097,-636.0,0.000232,2]
[361997376,1747929045106,-8254.85100393,0.0002321,8]
[361997377,1747929045116,-986.976,0.00023231,2]
[361997378,1747929045128,-2234.0,0.00023231,2]
[361997379,1747929045138,-709.093,0.00023231,2]
[361997380,1747929045148,-150.463,0.00023231,2]
[361997381,1747929045157,-404.0,0.00023231,2]
[361997382,1747929045167,-500.0,0.00023261,2]
[361997383,1747929045176,-2000.0,0.00023261,2]
[361997384,1747929045186,-1139.19650197,0.0002328,2]
[361997385,1747929045195,-25604.81892058,0.00023287,2]
[361997386,1747929045204,-1143.03684009,0.00023287,3]
[361997387,1747929045214,-430.0,0.00023287,2]
[361997388,1747929045224,-896.17,0.00023287,2]
[361997389,1747929045234,-430.0,0.00023287,2]
[361997390,1747929045244,-430.0,0.00023287,2]
[361997391,1747929045253,-1020.17,0.00023287,2]
[361997393,1747929045263,-500.0,0.00023287,2]
[361997395,1747929045273,-430.0,0.00023287,2]
[361997397,1747929045286,-430.0,0.00023287,2]
[361997399,1747929045295,-430.0,0.00023287,2]
[361997401,1747929045306,-430.0,0.00023287,2]
[361997403,1747929045316,-938.52,0.00023287,2]
[361997405,1747929045326,-662.08,0.00023287,2]
[361997407,1747929045336,-430.0,0.00023287,2]
[361997409,1747929045346,-640.76,0.00023287,2]
[361997411,1747929045356,-491.97,0.00023287,2]
[361997413,1747929045367,-430.0,0.00023287,2]
[361997415,1747929045376,-430.0,0.00023287,2]
[361997417,1747929045386,-1379.19,0.00023287,2]
[361997419,1747929045396,-1239.19,0.00023287,2]
[361997421,1747929045405,-430.0,0.00023287,2]
[361997423,1747929045415,-1208.6,0.00023287,2]
[361997425,1747929045424,-430.0,0.00023287,2]
[361997427,1747929045434,-851.89,0.00023287,2]
[361997429,1747929045443,-461.3,0.00023287,2]
[361997432,1747929045453,-430.0,0.00023287,2]
[361997434,1747929045463,-771.35,0.00023287,2]
[361997436,1747929045472,-1322.26,0.00023287,2]